Cogmind - Beta 14 @@@ ROGUE MODE // 2024.12.04 @ 20:46:45 Player: zicraftian Result: Destroyed by G-47 Trooper with Particle Gun Performance ------------- Evolutions (2) 1000 Regions Visited (6) 1200 Robots Destroyed (26) 130 Value Destroyed (612) 612 Prototype IDs (23) 460 Alien Tech Used (0) 0 Bonus (336) 336 TOTAL SCORE: 3738 Bonus ------- High Alert Combat Kills 36 Aligned with FarCom 300 Cogmind --------- Core Integrity 0/550 Matter 286/300 Energy 38/100 System Corruption 7% Temperature Cool (9) Movement Walking (120) Location -8/Materials Parts ------- > --- POWER (2) -------- (None) > --- PROPULSION (3) --- Aluminum Leg > --- UTILITY (4) ------ Improved Heat Sink > --- WEAPON (2) ------- (None) > --- INVENTORY (5) ---- (None) Peak State ------------ > --- POWER ------------ Light Ion Engine > --- PROPULSION ------- Aluminum Leg Improved Aluminum Leg > --- UTILITY ---------- Small Storage Unit Light Armor Plating Hardened Light Armor Plating > --- WEAPON ----------- YOLO Cannon > --- INVENTORY -------- Light Treads Aluminum Leg Medium Laser Medium Laser Light EM Pulse Cannon Light EM Pulse Cannon Light Assault Rifle Grenade Launcher [Rating: 29] Favorites ----------- Power Light Ion Engine Engine Light Ion Engine Power Core Nuclear Core Propulsion Aluminum Leg Leg Aluminum Leg Utility Small Storage Unit Device Improved Heat Sink Storage Small Storage Unit Protection Light Armor Plating Weapon Light EM Pulse Cannon Energy Gun Medium Laser Energy Cannon Light EM Pulse Cannon Ballistic Gun Light Assault Rifle Ballistic Cannon Flak Cannon Launcher Grenade Launcher Build | -11 -10 -9 -9 -9 -8 -8 ------- Run | Yrd Mat Mat Min Exi Min Mat Slots Evolved 4 | . . 2 . . . 2 Power 1 | . . 1 . . . . Propulsion 1 | . . . . . . 1 Utility 2 | . . 1 . . . 1 Weapon . | . . . . . . . Parts Attached 27 | 6 3 1 . 1 5 11 Power 3 | 1 1 . . . . 1 Engine 2 | 1 1 . . . . . Core 1 | . . . . . . 1 Reactor . | . . . . . . . Propulsion 8 | 2 . . . . 2 4 Treads . | . . . . . . . Leg 8 | 2 . . . . 2 4 Wheel . | . . . . . . . Hover . | . . . . . . . Flight . | . . . . . . . Utility 4 | 1 . 1 . . 1 1 Device 1 | . . . . . . 1 Storage 1 | 1 . . . . . . Processor . | . . . . . . . Hackware . | . . . . . . . Protection 2 | . . 1 . . 1 . Artifact . | . . . . . . . Weapon 12 | 2 2 . . 1 2 5 Energy Gun 3 | . . . . . . 3 Energy Cannon 4 | . 1 . . 1 2 . Ballistic Gun 3 | 2 . . . . . 1 Ballistic Cannon 1 | . . . . . . 1 Launcher 1 | . 1 . . . . . Special Weapon . | . . . . . . . Impact Weapon . | . . . . . . . Slashing Weapon . | . . . . . . . Piercing Weapon . | . . . . . . . Special Melee Weapon . | . . . . . . . Unidentified Prototypes . | . . . . . . . Parts Lost 19 | . 1 . . . 10 8 Power 3 | . 1 . . . 1 1 Propulsion 6 | . . . . . 3 3 Utility 3 | . . . . . 3 . Weapon 7 | . . . . . 3 4 Highest Loss Streak 7 | . 1 . . . 6 7 To Critical Strikes . | . . . . . . . Average Slot Usage (%) 62 | . 84 75 77 72 53 10 Engine 9 | . 13 11 11 11 6 . Leg 19 | . 28 22 22 22 17 3 Storage 9 | . 14 11 11 11 6 . Protection 8 | . . 9 11 11 12 . Energy Cannon 8 | . 1 11 11 11 11 . Ballistic Gun 2 | . 17 . . . . 1 Launcher 5 | . 8 11 11 6 . . Peak Build Rating 29 | 6 7 8 8 26 29 13 Average Rating 11 | 3 6 7 8 15 17 3 On Entrance 7 | . 6 7 8 8 26 . Naked Turns 292 | . . . . . 91 201 Heaviest Build 34 | 10 15 18 18 29 34 12 Greatest Support 32 | 20 20 20 20 20 23 32 Greatest Overweight (x) 2 | 1 . . . 1 2 1 Average Overweight (x) . | . . . . . . . Largest Inventory Capacity 8 | 8 8 8 8 8 8 5 Average Capacity 7 | 7 8 8 8 8 6 5 Most Carried 8 | 8 8 8 7 8 8 5 Average Carried 6 | 4 5 7 7 7 5 3 Final Capacity 8 | 8 8 8 8 8 5 5 Final Carried 8 | 4 7 7 7 8 4 . Class Distribution -------------------- 100% | Mutant Dominant Class ---------------- Mutant | -10/Materials Mutant | -9/Materials Mutant | -9/Mines Mutant | -9/Exiles Mutant | -8/Mines Mutant | -8/Materials Resources | -11 -10 -9 -9 -9 -8 -8 ----------- Run | Yrd Mat Mat Min Exi Min Mat Matter Collected 524 | 260 19 55 20 . 30 140 Remotely . | . . . . . . . Salvage Created 593 | . 136 . 70 . 223 164 Parts 45 | . 9 . 4 . 23 9 Haulers Intercepted . | . . . . . . . Recyclers Shooed 1 | . . . . . . 1 Parts Field Recycled . | . . . . . . . Retrieved Matter . | . . . . . . . Parts Self-Destructed . | . . . . . . . Prevented . | . . . . . . . Kills | -11 -10 -9 -9 -9 -8 -8 ------- Run | Yrd Mat Mat Min Exi Min Mat Combat Hostiles Destroyed 23 | . 5 . 2 . 10 6 Guns 6 | . 3 . . . . 3 Cannons 6 | . . . 1 . 3 2 AOE 11 | . 2 . 1 . 7 1 Classes Destroyed 5 | . 2 . . . 3 . Builder 2 | . . . . . 2 . Tunneler 1 | . . . . . 1 . Swarmer 12 | . 2 . . . 7 3 Grunt 10 | . 3 . 2 . 2 3 Duelist 1 | . . . . . 1 . Best Kill Streak 10 | . 3 . 2 . 10 3 Combat Bots Only 6 | . 3 . 2 . 6 3 Max Kills in Single Turn 3 | . 1 . 1 . 3 1 Gunslinging . | . . . . . . . Exploded 2 | . 1 . 1 . 2 1 Melee . | . . . . . . . Uniques/NPCs Destroyed . | . . . . . . . Combat | -11 -10 -9 -9 -9 -8 -8 -------- Run | Yrd Mat Mat Min Exi Min Mat Hostile Shots Fired 227 | . 18 . 4 . 81 124 Missed 70 | . 4 . 2 . 23 41 Damage Taken 2426 | . 192 . 20 . 852 1362 Core 825 | . 48 . . . 210 567 Absorbed by Shields . | . . . . . . . Core Remaining (%) 61 | 100 80 . . . 5 . Volleys Fired 48 | . 6 . 3 . 15 24 Largest 2 | . 2 . 2 . 2 2 Hottest 112 | . 50 . 86 . 112 75 Shots Fired 68 | . 12 . 5 . 16 35 Gun 40 | . 9 . . . . 31 Cannon 23 | . . . 3 . 16 4 Launcher 5 | . 3 . 2 . . . Special . | . . . . . . . Kinetic 27 | . 9 . . . . 18 Thermal 29 | . . . . . 12 17 Explosive 5 | . 3 . 2 . . . Electromagnetic 7 | . . . 3 . 4 . Robot Hit Streak 10 | . 7 . 8 . 3 10 Robot Miss Streak 4 | . 1 . . . 4 4 Penetration Max . | . . . . . . . Secondary Targets 1 | . . . . . . 1 Max Gunslinging Chain 1 | . . . . . . 1 Shots Hit Robots 40 | . 8 . 1 . 7 24 Core Hits 44 | . 9 . 5 . 13 17 Critical Kills 1 | . . . . . 1 . Critical Parts Destroyed . | . . . . . . . Critical Strikes 2 | . . . . . 1 1 Burn 1 | . . . . . . 1 Meltdown 1 | . . . . . 1 . Melee Attacks . | . . . . . . . Impact . | . . . . . . . Slashing . | . . . . . . . Piercing . | . . . . . . . Sneak Attacks . | . . . . . . . Combat Hostiles . | . . . . . . . Follow-up Attacks . | . . . . . . . Damage Inflicted 2429 | . 173 . 125 . 1617 514 Guns 485 | . 53 . . . . 432 Cannons 610 | . . . 23 . 554 33 Explosions 1307 | . 109 . 102 . 1054 42 Melee . | . . . . . . . Ramming 27 | . 11 . . . 9 7 Kinetic 392 | . 53 . . . . 339 Thermal 1665 | . . . . . 1539 126 Explosive 211 | . 109 . 102 . . . Electromagnetic 134 | . . . 23 . 69 42 Impact . | . . . . . . . Slashing . | . . . . . . . Piercing . | . . . . . . . Highest Corruption 7 | . . . . . 1 7 Average Corruption 2 | . . . . . 1 2 Corruption Purged . | . . . . . . . Corruption Blocked . | . . . . . . . Effects 5 | . . . . . . 5 Message Errors 1 | . . . . . . 1 Matter Fused 1 | . . . . . . 1 Energy Discharges 1 | . . . . . . 1 Data Loss (minor) 1 | . . . . . . 1 Weapon Failures 1 | . . . . . . 1 Overload Shots . | . . . . . . . Overflow Damage 190 | . 5 . . . 185 . Projectiles 99 | . . . . . 99 . Explosions 91 | . 5 . . . 86 . Melee . | . . . . . . . Knockbacks . | . . . . . . . Impact . | . . . . . . . Kinetic . | . . . . . . . Secondary . | . . . . . . . Self-Inflicted Damage 219 | . 34 . . . 139 46 Shots 4 | . 1 . . . 2 1 Rammed 3 | . . . . . 2 1 Targets Rammed 10 | . 2 . . . 6 2 Kicked 7 | . 2 . . . 4 1 Crushed . | . . . . . . . Highest Temperature 140 | . 16 . 46 . 87 140 Average Temperature 41 | . 9 . 21 . 29 68 Received Heat Transfer 921 | . 18 . 12 . 351 540 Siege Activations . | . . . . . . . Robots Corrupted . | . . . . . . . Combat Hostiles . | . . . . . . . Parts Fried . | . . . . . . . Impact Corruptions . | . . . . . . . Robots Melted 1 | . . . . . 1 . Combat Hostiles . | . . . . . . . Parts Melted 4 | . . . . . 4 . Heat Transferred 1884 | . . . . . 1440 444 Parts Sabotaged . | . . . . . . . Parts Stolen . | . . . . . . . Parts Stripped . | . . . . . . . Power Chain Reactions . | . . . . . . . Alert | -11 -10 -9 -9 -9 -8 -8 ------- Run | Yrd Mat Mat Min Exi Min Mat Peak Influence 521 | . 189 15 58 . 367 521 Initial 59 | . . . 5 . . 59 Average 170 | . 98 2 48 . 221 311 Maximum Alert Level 2 | . . . . . 1 2 Low Security (%) 69 | 100 100 100 100 . 52 35 Level 1 18 | . . . . . 47 13 Level 2 11 | . . . . . . 51 Level 3 . | . . . . . . . Level 4 . | . . . . . . . Level 5 . | . . . . . . . High Security . | . . . . . . . Max Security . | . . . . . . . Squads Dispatched 6 | . 1 2 . . 1 2 Investigation 3 | . . 2 . . . 1 Extermination . | . . . . . . . Reinforcement 3 | . 1 . . . 1 1 Assault . | . . . . . . . Garrison . | . . . . . . . Intercept . | . . . . . . . Searches Triggered . | . . . . . . . Construction Impeded 1 | . . . . . 1 . Haulers Reinforced . | . . . . . . . Active Scanning Responses . | . . . . . . . Cargo Convoy Interrupts . | . . . . . . . Stealth | -11 -10 -9 -9 -9 -8 -8 --------- Run | Yrd Mat Mat Min Exi Min Mat Distress Signals 2 | . 1 . . . . 1 Communications Jammed . | . . . . . . . Distress Signals . | . . . . . . . Times Spotted 52 | . 8 1 3 . 16 24 Peak Tracking Total 12 | . 4 1 3 . 4 12 Tactical Retreats 14 | . 2 . . . 5 7 Traps | -11 -10 -9 -9 -9 -8 -8 ------- Run | Yrd Mat Mat Min Exi Min Mat Traps Triggered 2 | . 1 . . . . 1 Indirectly . | . . . . . . . Trap Hack Attempts . | . . . . . . . Triggered . | . . . . . . . Disarmed . | . . . . . . . Reprogrammed . | . . . . . . . Reused . | . . . . . . . Traps Extracted . | . . . . . . . Installed . | . . . . . . . Triggered . | . . . . . . . Machines | -11 -10 -9 -9 -9 -8 -8 ---------- Run | Yrd Mat Mat Min Exi Min Mat Machines Disabled 2 | . . . . . . 2 Max in Single Turn 1 | . . . . . . 1 Machines Repaired . | . . . . . . . Machines Dismantled . | . . . . . . . Machines Sabotaged . | . . . . . . . Overloaded Fab Kills . | . . . . . . . Hacking | -11 -10 -9 -9 -9 -8 -8 --------- Run | Yrd Mat Mat Min Exi Min Mat Machines Accessed 3 | . . 1 . 1 . 1 Terminals 2 | . . 1 . . . 1 Fabricators . | . . . . . . . Repair Stations . | . . . . . . . Recycling Units . | . . . . . . . Scanalyzers . | . . . . . . . Garrison Access . | . . . . . . . Total Hacks 7 | . . 3 . 1 . 3 Successful 6 | . . 3 . 1 . 2 Failed 1 | . . . . . . 1 Catastrophic . | . . . . . . . Database Lockouts . | . . . . . . . Manual 1 | . . . . 1 . . Terminals 6 | . . 3 . . . 3 Fabricators . | . . . . . . . Repair Stations . | . . . . . . . Recycling Units . | . . . . . . . Scanalyzers . | . . . . . . . Garrison Access . | . . . . . . . Terminal Hacks 6 | . . 3 . 1 . 2 Record 2 | . . 2 . . . . Emergency Access Points 1 | . . . . . . 1 Alert Level 1 | . . . . . . 1 Hauler Manifests 1 | . . 1 . . . . Derelict Proto ID Bank 1 | . . . . 1 . . Fabricator Hacks . | . . . . . . . Repair Station Hacks . | . . . . . . . Recycling Unit Hacks . | . . . . . . . Scanalyzer . | . . . . . . . Garrison Access Hacks . | . . . . . . . Unauthorized Hacks . | . . . . . . . Terminals . | . . . . . . . Fabricators . | . . . . . . . Repair Stations . | . . . . . . . Recycling Units . | . . . . . . . Scanalyzers . | . . . . . . . Garrison Access . | . . . . . . . Data Cores Recovered . | . . . . . . . Used . | . . . . . . . Hacking Detections 2 | . . 1 . . . 1 Full Trace Events . | . . . . . . . Feedback Events . | . . . . . . . Feedback Blocked . | . . . . . . . Robot Schematics Acquired . | . . . . . . . Robots Built . | . . . . . . . Authchips . | . . . . . . . Time . | . . . . . . . Total Robot Build Rating . | . . . . . . . Part Schematics Acquired . | . . . . . . . Parts Built . | . . . . . . . Authchips . | . . . . . . . Time . | . . . . . . . Total Part Build Rating . | . . . . . . . Parts Repaired . | . . . . . . . Time . | . . . . . . . Parts Recycled . | . . . . . . . Recycled Matter . | . . . . . . . Retrieved Matter . | . . . . . . . Retrieved Components . | . . . . . . . Parts Scanalyzed . | . . . . . . . Part Schematics Acquired . | . . . . . . . Parts Damaged . | . . . . . . . Bothacking | -11 -10 -9 -9 -9 -8 -8 ------------ Run | Yrd Mat Mat Min Exi Min Mat Used RIF Installer . | . . . . . . . Robots Hacked . | . . . . . . . Non-combat . | . . . . . . . Combat . | . . . . . . . Robot Hacks Applied . | . . . . . . . Relay Couplers Released . | . . . . . . . Fabnet Peak Effective % . | . . . . . . . Robots Rewired . | . . . . . . . Allies Hacked . | . . . . . . . Hacks Repelled . | . . . . . . . Allies | -11 -10 -9 -9 -9 -8 -8 -------- Run | Yrd Mat Mat Min Exi Min Mat Total Allies . | . . . . . . . Largest Group . | . . . . . . . Highest-Rated Group . | . . . . . . . Highest-Rated Ally . | . . . . . . . Total Orders . | . . . . . . . Ally Attacks . | . . . . . . . Total Damage . | . . . . . . . Kills . | . . . . . . . Allies Corrupted . | . . . . . . . Allies Melted . | . . . . . . . Intel | -11 -10 -9 -9 -9 -8 -8 ------- Run | Yrd Mat Mat Min Exi Min Mat Robot Analysis Total . | . . . . . . . Derelict Logs Recovered . | . . . . . . . Drone Launches . | . . . . . . . Drone Recoveries . | . . . . . . . Exploration | -11 -10 -9 -9 -9 -8 -8 ------------- Run | Yrd Mat Mat Min Exi Min Mat Turns Passed 2891 | 67 419 195 45 1261 525 379 Spaces Moved 1859 | 53 303 160 31 606 343 363 Core 553 | 24 . . . . 178 351 Treads . | . . . . . . . Legs 1306 | 29 303 160 31 606 165 12 Wheels . | . . . . . . . Hover . | . . . . . . . Flight . | . . . . . . . Fastest Speed 50 | 50 120 120 120 120 50 50 Average Speed 115 | 96 120 120 120 152 108 59 Slowest Speed 190 | 120 120 120 120 190 190 190 Overloaded Moves . | . . . . . . . Propulsion Burnouts . | . . . . . . . Robots Hopped . | . . . . . . . Cave-ins Triggered . | . . . . . . . Exploration Rate (%) 41 | 4 40 23 13 92 78 41 Regions Visited 6 Branch Regions 3 Pre-discovered Areas . | . . . . . . . Known Exits Taken . | . . . . . . . Unknown Exits Taken 6 | 1 1 1 1 1 1 . Scrap Searched 2 | . . . 1 . 1 . Spaces Dug . | . . . . . . . Terrain Destroyed 178 | . 18 . 13 . 144 3 Melee . | . . . . . . . Projectile 6 | . . . . . 6 . AOE 172 | . 18 . 13 . 138 3 Terrain Rammed . | . . . . . . . Walls Destroyed . | . . . . . . . Machines Disabled . | . . . . . . . Actions | -11 -10 -9 -9 -9 -8 -8 --------- Run | Yrd Mat Mat Min Exi Min Mat Total 2503 | 68 351 163 34 945 450 492 Wait 183 | . 24 2 1 1 70 85 Move 1853 | 52 302 159 30 605 342 363 Hop . | . . . . . . . Pick Up 34 | 10 8 1 . 3 6 6 Fast Attach . | . . . . . . . Attach 26 | 6 3 1 . 1 4 11 Detach 3 | . 2 . . . . 1 Swap 1 | . . . . . 1 . Drop 10 | . 4 . . 3 3 . Fire 48 | . 6 . 3 . 15 24 Melee . | . . . . . . . Ram 3 | . . . . . 2 1 Kick 7 | . 2 . . . 4 1 Crush . | . . . . . . . Escape Stasis . | . . . . . . . Rewire 335 | . . . . 332 3 . Trap . | . . . . . . . Miscellaneous . | . . . . . . . Route ------- -11/Scrapyard -10/Materials -9/Materials -9/Mines (discovered 2 exits: *Mat / *Exi) -9/Exiles -8/Mines -8/Materials (discovered 1 exit: [*Fac]) History --------- Turn | Location | Event 3 | -11/Scrapyard | Discovered new exit (range 15) 68 | -11/Scrapyard | Entered Materials 300 | -10/Materials | Build established: Mutant 402 | -10/Materials | Discovered new exit (range 14) 487 | -10/Materials | Entered another Materials area 487 | -9/Materials | Evolved 2 slots: Power x1, Utility x1 651 | -9/Materials | Met 8R-AWN 665 | -9/Materials | Discovered new exit (range 15) 682 | -9/Materials | Entered Mines 684 | -9/Mines | Followed 8R-AWN into the Mines 712 | -9/Mines | Discovered new exit (range 7) 723 | -9/Mines | Discovered new exit (range 5) 724 | -9/Mines | Met a Derelict bent on vengeance 727 | -9/Mines | Entered Exiles 757 | -9/Exiles | Welcomed by 8R-AWN 778 | -9/Exiles | Met EX-HEX 1185 | -9/Exiles | Met EX-DEC 1263 | -9/Exiles | Discovered new exit (range 10) 1350 | -9/Exiles | Met EX-BIN 1372 | -9/Exiles | Aligned with FarCom system 1374 | -9/Exiles | Given EX-Vault access code 1436 | -9/Exiles | Opened EX-Vault 1449 | -9/Exiles | Found YOLO Cannon 1500 | -9/Exiles | Warned to stay clear of 0b10 Research branches 1655 | -9/Exiles | Visited The Gauntlet 1988 | -9/Exiles | Left Exiles lab with YOLO Cannon 1988 | -9/Exiles | Entered Mines 2283 | -8/Mines | YOLO Cannon suddenly exploded 2284 | -8/Mines | Core integrity fell below 50% 2314 | -8/Mines | Lost 4 parts (1p1n1u1w) 2432 | -8/Mines | Core integrity fell below 20% 2453 | -8/Mines | Lost 6 parts (2n2u2w) 2506 | -8/Mines | Discovered new exit (range 10) 2513 | -8/Mines | Entered Materials 2513 | -8/Materials | Evolved 2 slots: Propulsion x1, Utility x1 2645 | -8/Materials | Discovered new exit (range 15) 2776 | -8/Materials | Core integrity fell below 50% 2869 | -8/Materials | Core integrity fell below 20% 2892 | -8/Materials | Destroyed by G-47 Trooper with Particle Gun Last Messages --------------- 02864_ Med. Laser destroyed. 02864_ System corrupted by crushing effect (+1). 02866_ Nuclear Core destroyed. 02867_ Knocked back. 02871_ Acquired Imp. Heat Sink. 02871_ Hpw. Shotgun destroyed. 02871_ System corrupted by crushing effect (+4). 02872_ Aluminum Leg destroyed. 02872_ Critical hit (Burn: +37). 02873_ Acquired Aluminum Leg. 02876_ Knocked back. 02883_ G-47 Trooper system corrupted by crushing effect. 02883_ System corrupted: Med. Laser failed to cycle. 02884_ G-47 Trooper system terminally corrupted. 02885_ System corrupted: Energy discharge (-23). 02889_ Acquired 38 matter. 02890_ Med. Laser destroyed. 02892_ Kicked Y-45 Defender. Map ----- +----------------------------------------------------+ | ?????????????????????????????????????????????# | | ????????????????????????????????????????????## | | ????????????????????????????????????????????? | | ????????????????????????????????????????????? | | ????????????????????????????????????????????? | | ?????????????????????????????????????????????#### | | ????????????????????????????????????????????????? | | ????????????????????????????????????????????????? | | ????????????????????????????????????????????????? | | ????????????????????????????????????????????????? | | ????????????????????????????????????????????????? | | ????????????????????????????????????????????????? | | ????????????????????????????????????????????????? | | ????????????????????????????????????????????????? | | ????????????????????????????????????????????????? | | ????????????????????????????????????????????????? | | ????????????????????????????????????????????????? | | ???????????????????????????????????????########## | | ???????????????????????????????????????# | | ???????????????????????????????????????# | | ???????????????????????????????????????# """ | | ???????????????????????????????????????# """ | | ???????????????????????????????????????#[ """ | | ????????????s??????????????????????????# """ | | ???????????????????????##########??????# """ | | ????????????s??????????#@gb *%#??????# | | ???????????????????????#Y" " #??????# | | ????????????s??????????# """""[ #??????# ! """ | | ???????????????????????# """""r #??????# """ | | ????????????w??????????# g #??????# """ | | ???????????????????????# """"" #??????# | | ???????????????????????# """"" #??????# | | ???????????????????????# """"" #??????#"" | | ???????????????????????# #??????#"T | | ??????????????? #########+###########"" | | ??????????????# | | ??????????????# | | ??????????????#!= # # ##########+###### | | ???????????????=! ????# # #?????# #? | | ???????????????????????#!![[!!# #?????# ]* #? | | ???????????????????????#!![[!!# #?????# ]* / #? | | ???????????????????????######## #?????# ]* #? | | ??????????????????????????????# #?????# ! #? | | ??????????????????????????????# ####### """ #? | | ??????????????????????????????# + """ #? | | ??????????????????????????????######### """ #? | | ??????????????????????????????????????# #? | | ??????????????????????????????????????### ######? | | ?????????????????????????????????????????##?????? | | ????????????????????????????????????????????????? | +----------------------------------------------------+ Best States ------------- Heat Dissipation 45 Energy Generation 14 Energy Capacity 240 Matter Stores 300 Matter Capacity 300 Sight Range 16 Terrain Scan Density 10 Armor Coverage 300 Evasion (%) 55 Item Schematics ----------------- None Robot Schematics ------------------ None Fabricated ------------ Nothing Alien Tech Used ----------------- None Achievements -------------- It's Just You Challenges ------------ None Game ------ Seed PoweredPhysicsCarapace Manual? 0 Play Time 00:31:53 Cumulative 9.5 hours Start 2024.12.04 @ 19:15:30 End 2024.12.04 @ 20:46:45 Sessions 3 Manual Loads 0 Difficulty Rogue Special Mode None Game No. 8 Rogue 8 Adventurer 0 Explorer 0 Win Type - Total 0 Types 0/0/0/0/0/0/0/0/0 Lore% 8 Gallery% 12 Achievement% 16 Wizard Run 0 Options --------- Layout 1 ASCII 0 Keyboard 1 Movement Numpad Keybinds 0 Fullscreen 1 Font 24/Smallcaps Map View 50x35 Zoom Use 0% Tactical HUD 1 Map Filters NONE Filters NONE Steam 1 RUN: f023c31f-7537-4eaa-a9bf-63bb0b12bd72